[Event "Kupreichik Memorial Open 2018"]
[Site "Minsk"]
[Date "2018.06.22"]
[Round "8"]
[White "Papunidi, Matvey"]
[Black "Osmolny, Vladimir I"]
[Result "0-1"]
[ECO "B29"]
[WhiteElo "1751"]
[BlackElo "2163"]
[Annotator "NA"]
[PlyCount "106"]
[EventDate "2018.06.21"]
[EventCountry "BLR"]
[SourceTitle "playchess.com"]
[Source "ChessBase"]
[SourceQuality "1"]
[TimeControl "900+10"]

1. e4 {[%emt 0:00:00]} c5 {[%emt 0:00:01]} 2. Nf3 {[%emt 0:00:00]} Nf6 {[%emt 0:00:01]} 3. Nc3 {[%emt 0:00:04]} d6 {[%emt 0:00:03]} 4. d4 {[%emt 0:00:12]} cxd4 {[%emt 0:00:02]} 5. Qxd4 {[%emt 0:00:01]} Nc6 {[%emt 0:01:15]} 6. Bb5 {[%emt 0:00:02]} Bd7 {[%emt 0:00:12]} 7. Bxc6 {[%emt 0:00:01]} Bxc6 {[%emt 0:00:06]} 8. Bg5 {[%emt 0:00:02]} Qb6 {[%emt 0:00:49]} 9. Bxf6 {[%emt 0:00:38]} gxf6 {[%emt 0:00:02]} 10. Qxb6 {[%emt 0:00:07]} axb6 {[%emt 0:00:02]} 11. O-O-O {[%emt 0:00:06]} Rg8 {[%emt 0:00:25]} 12. Rhg1 {[%emt 0:01:15]} e6 {[%emt 0:00:21]} 13. Nd4 {[%emt 0:00:38]} Ra5 {[%emt 0:00:59]} 14. f3 {[%emt 0:00:54]} Kd7 {[%emt 0:00:11]} 15. b4 {[%emt 0:00:17]} Rag5 {[%emt 0:01:29]} 16. b5 {[%emt 0:00:40]} Rxg2 {[%emt 0:00:03]} 17. bxc6+ {[%emt 0:00:01]} bxc6 {[%emt 0:00:01]} 18. Rxg2 {[%emt 0:05:41]} Rxg2 {[%emt 0:00:03]} 19. Rh1 {[%emt 0:00:02]} b5 {[%emt 0:00:08]} 20. Kd1 {[%emt 0:00:57]} Bh6 {[%emt 0:02:41]} 21. Nce2 {[%emt 0:00:55]} b4 {[%emt 0:00:26]} 22. Ke1 {[%emt 0:01:37]} Be3 {[%emt 0:00:50]} 23. Nb3 {[%emt 0:00:04]} c5 {[%emt 0:00:20]} 24. Nd2 {[%emt 0:00:28]} Bh6 {[%emt 0:02:06]} 25. Kf1 {[%emt 0:00:36]} Rg8 {[%emt 0:00:04]} 26. Nc4 {[%emt 0:01:20]} d5 {[%emt 0:00:05]} 27. exd5 exd5 {[%emt 0:00:01]} 28. Nb2 {[%emt 0:00:30]} Ra8 {[%emt 0:00:04]} 29. Nd3 Kc6 {[%emt 0:01:01]} 30. Ndc1 {[%emt 0:00:01]} Ra3 {[%emt 0:00:24]} 31. f4 {[%emt 0:00:44]} Bxf4 {[%emt 0:01:30]} 32. Nxf4 {[%emt 0:00:21]} Rf3+ {[%emt 0:00:01]} 33. Kg2 {[%emt 0:00:56]} Rxf4 {[%emt 0:00:02]} 34. Rf1 {[%emt 0:00:03]} Rg4+ {[%emt 0:01:24]} 35. Kf3 {[%emt 0:00:09]} Rc4 {[%emt 0:00:13]} 36. Rf2 {[%emt 0:00:10]} Kd6 {[%emt 0:01:18]} 37. Ke3 {[%emt 0:00:28]} Re4+ {[%emt 0:01:18]} 38. Kd2 {[%emt 0:00:02]} Rh4 {[%emt 0:00:57]} 39. Rxf6+ {[%emt 0:00:14]} Ke5 {[%emt 0:00:01]} 40. Rf2 {[%emt 0:00:07]} c4 {[%emt 0:00:00]} 41. Ne2 {[%emt 0:00:31]} d4 {[%emt 0:00:35]} 42. Ng1 {[%emt 0:00:25]} Rf4 {[%emt 0:00:19]} 43. Rxf4 {[%emt 0:00:15]} Kxf4 {[%emt 0:00:01]} 44. Ke2 {[%emt 0:00:20]} f5 {[%emt 0:00:06]} 45. Nf3 {[%emt 0:00:10]} Ke4 {[%emt 0:00:02]} 46. Ng5+ {[%emt 0:00:01]} Kf4 {[%emt 0:00:25]} 47. Nxh7 {[%emt 0:00:18]} Kg4 {[%emt 0:00:03]} 48. Nf6+ {[%emt 0:00:08]} Kh3 {[%emt 0:00:04]} 49. Nd5 {[%emt 0:00:09]} f4 {[%emt 0:00:29]} 50. Nxb4 {[%emt 0:00:09]} Kg2 {[%emt 0:00:01]} 51. Nd5 {[%emt 0:00:29]} f3+ {[%emt 0:00:02]} 52. Kd2 {[%emt 0:00:01]} f2 {[%emt 0:00:13]} 53. Nf4+ {[%emt 0:00:02]} Kf3 0-1

[Event "Kupreichik Memorial Open 2018"]
[Site "Minsk"]
[Date "2018.06.22"]
[Round "8"]
[White "Zagorskii, Artem"]
[Black "Cherepov, Alexej"]
[Result "1-0"]
[ECO "B62"]
[WhiteElo "1705"]
[BlackElo "2234"]
[Annotator "NA"]
[PlyCount "110"]
[EventDate "2018.06.21"]
[EventCountry "BLR"]
[SourceTitle "playchess.com"]
[Source "ChessBase"]
[SourceQuality "1"]
[TimeControl "900+10"]

1. e4 {[%emt 0:00:00]} c5 {[%emt 0:00:05]} 2. Nf3 {[%emt 0:00:00]} d6 {[%emt 0:00:04]} 3. d4 {[%emt 0:00:00]} cxd4 {[%emt 0:00:02]} 4. Nxd4 {[%emt 0:00:01]} Nf6 {[%emt 0:00:01]} 5. Nc3 {[%emt 0:00:02]} Nc6 {[%emt 0:00:01]} 6. Bg5 {[%emt 0:00:24]} e6 {[%emt 0:00:06]} 7. Qd3 {[%emt 0:00:07]} a6 {[%emt 0:00:23]} 8. O-O-O {[%emt 0:00:21]} Be7 {[%emt 0:00:08]} 9. f4 {[%emt 0:00:02]} Qc7 {[%emt 0:01:30]} 10. Qg3 {[%emt 0:00:39]} Bd7 {[%emt 0:00:47]} 11. Be2 {[%emt 0:03:46]} O-O-O {[%emt 0:00:36]} 12. Qe3 {[%emt 0:01:19]} Kb8 {[%emt 0:00:11]} 13. Kb1 {[%emt 0:00:38]} Rc8 {[%emt 0:00:32]} 14. Bh4 {[%emt 0:00:37]} Nxe4 {[%emt 0:01:06]} 15. Nxc6+ {[%emt 0:00:42]} Bxc6 {[%emt 0:00:42]} 16. Nxe4 {[%emt 0:00:45]} Bxh4 {[%emt 0:00:42]} 17. Nxd6 {[%emt 0:00:19]} Rcd8 {[%emt 0:00:15]} 18. Ne4 {[%emt 0:01:34]} Be7 {[%emt 0:00:17]} 19. Bf3 {[%emt 0:00:17]} Rxd1+ {[%emt 0:00:11]} 20. Rxd1 {[%emt 0:00:03]} Rd8 {[%emt 0:00:07]} 21. g3 {[%emt 0:02:23]} h6 {[%emt 0:00:16]} 22. h4 {[%emt 0:00:15]} Rxd1+ {[%emt 0:02:48]} 23. Bxd1 {[%emt 0:00:01]} Qa5 {[%emt 0:00:02]} 24. a3 {[%emt 0:01:46]} Qa4 {[%emt 0:02:25]} 25. Nc3 {[%emt 0:00:15]} Qa5 {[%emt 0:00:13]} 26. Ne4 {[%emt 0:00:43]} Ka8 {[%emt 0:00:25]} 27. Bf3 {[%emt 0:01:39]} Qc7 {[%emt 0:01:15]} 28. Qd4 {[%emt 0:00:13]} Bf8 {[%emt 0:00:28]} 29. Be2 {[%emt 0:00:28]} Qd7 {[%emt 0:00:25]} 30. Qe3 {[%emt 0:00:09]} Qd5 {[%emt 0:00:18]} 31. Nc3 {[%emt 0:00:10]} Qc5 {[%emt 0:00:48]} 32. Qd3 {[%emt 0:00:08]} Qd6 {[%emt 0:00:16]} 33. Qe3 {[%emt 0:00:12]} Kb8 {[%emt 0:00:07]} 34. Bh5 {[%emt 0:00:24]} g6 {[%emt 0:00:07]} 35. Be2 {[%emt 0:00:02]} Bg7 {[%emt 0:00:16]} 36. Bc4 {[%emt 0:00:21]} Qd4 {[%emt 0:00:18]} 37. Qe2 {[%emt 0:00:09]} Qg1+ {[%emt 0:00:06]} 38. Ka2 {[%emt 0:00:00]} Qxg3 {[%emt 0:00:13]} 39. Qd2 {[%emt 0:00:19]} Kc7 {[%emt 0:00:31]} 40. Bb3 {[%emt 0:00:14]} Qxh4 41. Na4 Qf6 {[%emt 0:00:33]} 42. c3 {[%emt 0:00:06]} Qf5 {[%emt 0:00:13]} 43. Qf2 {[%emt 0:00:10]} Bf8 {[%emt 0:00:42]} 44. Qb6+ {[%emt 0:00:01]} Kc8 {[%emt 0:00:01]} 45. Qa7 {[%emt 0:00:07]} Bd6 {[%emt 0:00:33]} 46. Nb6+ {[%emt 0:00:15]} Kc7 {[%emt 0:00:03]} 47. Na8+ {[%emt 0:00:02]} Kd7 {[%emt 0:00:10]} 48. Nb6+ {[%emt 0:00:04]} Ke7 {[%emt 0:00:03]} 49. Nc8+ {[%emt 0:00:05]} Kd7 {[%emt 0:00:02]} 50. Nb6+ {[%emt 0:00:02]} Kc7 {[%emt 0:00:05]} 51. Na8+ {[%emt 0:00:02]} Kd8 {[%emt 0:00:04]} 52. Qd4 {[%emt 0:01:02]} Qxf4 {[%emt 0:00:09]} 53. Qh8+ {[%emt 0:00:01]} Ke7 {[%emt 0:00:15]} 54. Nb6 Bc7 {[%emt 0:00:20]} 55. Nc4 {[%emt 0:00:28]} Bd5 {[%emt 0:00:12]} 1-0

[Event "Kupreichik Memorial Open 2018"]
[Site "Minsk"]
[Date "2018.06.22"]
[Round "8"]
[White "Kashtelyan, Valentin"]
[Black "Stroganova, Karina"]
[Result "1-0"]
[ECO "B01"]
[WhiteElo "1604"]
[BlackElo "1776"]
[Annotator "NA"]
[PlyCount "105"]
[EventDate "2018.06.21"]
[EventCountry "BLR"]
[SourceTitle "playchess.com"]
[Source "ChessBase"]
[SourceQuality "1"]
[TimeControl "900+10"]

1. e4 {[%emt 0:01:01]} d5 {[%emt 0:00:05]} 2. Nc3 {[%emt 0:00:19]} d4 {[%emt 0:00:27]} 3. Nce2 {[%emt 0:00:05]} c5 {[%emt 0:00:07]} 4. d3 {[%emt 0:00:03]} Nc6 {[%emt 0:00:22]} 5. f4 {[%emt 0:00:05]} e5 {[%emt 0:00:31]} 6. Nf3 {[%emt 0:00:24]} Nf6 {[%emt 0:00:28]} 7. fxe5 {[%emt 0:00:39]} Ng4 {[%emt 0:00:10]} 8. Bf4 {[%emt 0:01:00]} Ne3 {[%emt 0:03:33]} 9. Bxe3 {[%emt 0:00:04]} dxe3 {[%emt 0:00:07]} 10. d4 {[%emt 0:01:57]} cxd4 {[%emt 0:00:17]} 11. Nexd4 {[%emt 0:00:16]} Qa5+ {[%emt 0:00:24]} 12. c3 {[%emt 0:00:28]} Nxe5 {[%emt 0:00:12]} 13. Nxe5 {[%emt 0:00:30]} Qxe5 {[%emt 0:00:04]} 14. Bb5+ {[%emt 0:00:34]} Ke7 {[%emt 0:00:17]} 15. Bd3 {[%emt 0:00:35]} Qf4 {[%emt 0:01:00]} 16. Qf3 {[%emt 0:00:20]} Qxf3 {[%emt 0:00:29]} 17. gxf3 {[%emt 0:00:16]} Bh3 {[%emt 0:00:05]} 18. Ke2 {[%emt 0:00:01]} g6 {[%emt 0:00:20]} 19. Kxe3 {[%emt 0:00:16]} Rd8 {[%emt 0:00:05]} 20. Bf1 {[%emt 0:00:14]} Bh6+ {[%emt 0:00:16]} 21. Ke2 {[%emt 0:00:06]} Bd7 {[%emt 0:00:06]} 22. Bg2 {[%emt 0:00:40]} Rhe8 {[%emt 0:00:08]} 23. Kf2 {[%emt 0:00:27]} Bg7 {[%emt 0:00:31]} 24. Rad1 {[%emt 0:00:14]} Kf6 {[%emt 0:01:07]} 25. h4 {[%emt 0:00:16]} Re5 {[%emt 0:00:24]} 26. Ne2 {[%emt 0:00:38]} Rb5 {[%emt 0:00:51]} 27. b3 {[%emt 0:00:50]} Ke7 {[%emt 0:00:17]} 28. Rd3 {[%emt 0:00:22]} Rc8 {[%emt 0:00:15]} 29. c4 {[%emt 0:00:05]} Ra5 {[%emt 0:00:37]} 30. Rd2 {[%emt 0:00:10]} Rc6 {[%emt 0:00:12]} 31. Bh3 {[%emt 0:00:10]} Bxh3 {[%emt 0:00:21]} 32. Rxh3 {[%emt 0:00:03]} Rb6 {[%emt 0:02:12]} 33. Nf4 {[%emt 0:00:10]} Rba6 {[%emt 0:00:07]} 34. a4 {[%emt 0:00:09]} Bh6 {[%emt 0:00:09]} 35. Kg3 {[%emt 0:00:21]} Rf6 {[%emt 0:00:55]} 36. Nd5+ {[%emt 0:00:11]} Ke6 {[%emt 0:00:00]} 37. Rd3 {[%emt 0:00:15]} Ra6 {[%emt 0:01:02]} 38. Nxf6 {[%emt 0:00:04]} Kxf6 {[%emt 0:00:01]} 39. Rh1 {[%emt 0:00:09]} Rb6 {[%emt 0:00:17]} 40. Rhd1 {[%emt 0:00:02]} Kg7 {[%emt 0:00:03]} 41. h5 {[%emt 0:00:27]} gxh5 {[%emt 0:00:04]} 42. Kh4 {[%emt 0:00:16]} Bf4 {[%emt 0:00:18]} 43. Rg1+ {[%emt 0:00:37]} Kh6 {[%emt 0:00:57]} 44. Rd5 {[%emt 0:00:18]} Rg6 {[%emt 0:00:08]} 45. Rxh5+ {[%emt 0:00:12]} Kg7 {[%emt 0:00:01]} 46. Rxg6+ {[%emt 0:00:07]} fxg6 {[%emt 0:00:02]} 47. Rd5 {[%emt 0:00:05]} h5 {[%emt 0:00:25]} 48. Rd7+ {[%emt 0:00:07]} Kh6 {[%emt 0:00:05]} 49. Rxb7 {[%emt 0:00:02]} g5+ {[%emt 0:00:02]} 50. Kh3 {[%emt 0:00:01]} Be3 {[%emt 0:00:02]} 51. b4 {[%emt 0:00:08]} Kg6 {[%emt 0:00:09]} 52. c5 {[%emt 0:00:06]} a5 {[%emt 0:00:02]} 53. c6 {[%emt 0:00:13]} 1-0

[Event "Kupreichik Memorial Open 2018"]
[Site "Minsk"]
[Date "2018.06.22"]
[Round "8"]
[White "Stsepkina, Yauheniya"]
[Black "Tarasenka, Aliaksandra"]
[Result "0-1"]
[ECO "A81"]
[WhiteElo "1591"]
[BlackElo "1682"]
[Annotator "NA"]
[PlyCount "106"]
[EventDate "2018.06.21"]
[EventCountry "BLR"]
[SourceTitle "playchess.com"]
[Source "ChessBase"]
[SourceQuality "1"]
[TimeControl "900+10"]

1. d4 {[%emt 0:00:00]} f5 {[%emt 0:00:04]} 2. g3 {[%emt 0:00:00]} g6 {[%emt 0:00:05]} 3. Bg2 {[%emt 0:00:00]} Bg7 {[%emt 0:00:01]} 4. b3 {[%emt 0:00:30]} d6 {[%emt 0:00:08]} 5. Bb2 {[%emt 0:00:01]} Nc6 {[%emt 0:00:01]} 6. h4 {[%emt 0:00:16]} Nf6 {[%emt 0:00:28]} 7. h5 {[%emt 0:01:48]} Nxh5 {[%emt 0:00:52]} 8. Rxh5 {[%emt 0:00:08]} gxh5 {[%emt 0:00:02]} 9. e3 {[%emt 0:01:19]} O-O {[%emt 0:02:04]} 10. Qxh5 {[%emt 0:00:11]} Be6 {[%emt 0:01:07]} 11. Nf3 {[%emt 0:03:24]} Bf7 {[%emt 0:01:15]} 12. Qxf5 {[%emt 0:01:05]} Bxb3 {[%emt 0:00:55]} 13. Qd3 {[%emt 0:00:03]} Be6 {[%emt 0:02:14]} 14. Ng5 {[%emt 0:01:52]} Bf5 {[%emt 0:00:17]} 15. e4 {[%emt 0:01:28]} e5 {[%emt 0:01:40]} 16. Bc1 {[%emt 0:03:30]} Bd7 {[%emt 0:01:05]} 17. Qc4+ {[%emt 0:00:44]} Kh8 {[%emt 0:00:06]} 18. Nf7+ {[%emt 0:00:20]} Rxf7 {[%emt 0:00:01]} 19. Qxf7 {[%emt 0:00:02]} Nxd4 {[%emt 0:00:17]} 20. Na3 {[%emt 0:00:13]} Be6 {[%emt 0:00:39]} 21. Qh5 {[%emt 0:00:14]} c5 {[%emt 0:00:56]} 22. Bd2 {[%emt 0:00:37]} a6 {[%emt 0:00:22]} 23. Bh3 {[%emt 0:00:48]} Bxh3 {[%emt 0:00:27]} 24. Qxh3 {[%emt 0:00:01]} Nf3+ {[%emt 0:00:10]} 25. Ke2 {[%emt 0:00:18]} Nxd2 {[%emt 0:00:03]} 26. Rh1 {[%emt 0:00:15]} h6 {[%emt 0:00:24]} 27. Kxd2 {[%emt 0:00:12]} Qa5+ {[%emt 0:00:15]} 28. Ke2 {[%emt 0:00:09]} Qxa3 {[%emt 0:00:57]} 29. Qe6 {[%emt 0:00:05]} Qa4 {[%emt 0:02:44]} 30. Kd1 {[%emt 0:00:16]} Qe8 {[%emt 0:00:15]} 31. Qd5 {[%emt 0:00:07]} Qe7 {[%emt 0:00:10]} 32. Rh5 {[%emt 0:00:12]} Rf8 {[%emt 0:00:07]} 33. Ke2 {[%emt 0:00:10]} Qf7 {[%emt 0:00:09]} 34. Qxf7 {[%emt 0:00:07]} Rxf7 {[%emt 0:00:01]} 35. Rh1 {[%emt 0:00:03]} Kh7 {[%emt 0:00:06]} 36. Rd1 {[%emt 0:00:03]} Rd7 {[%emt 0:00:07]} 37. c4 {[%emt 0:00:02]} b5 {[%emt 0:00:05]} 38. Kd3 {[%emt 0:00:11]} Kg6 {[%emt 0:00:07]} 39. Rb1 {[%emt 0:00:01]} Rb7 {[%emt 0:00:12]} 40. Kc3 {[%emt 0:00:15]} Kg5 {[%emt 0:00:06]} 41. f3 {[%emt 0:00:06]} h5 {[%emt 0:00:07]} 42. Rd1 {[%emt 0:00:01]} Rb6 {[%emt 0:00:15]} 43. Rd2 {[%emt 0:00:19]} Bf8 {[%emt 0:00:17]} 44. Rf2 {[%emt 0:00:22]} bxc4 {[%emt 0:00:17]} 45. Kxc4 {[%emt 0:00:01]} Rb1 {[%emt 0:00:24]} 46. f4+ {[%emt 0:00:31]} exf4 {[%emt 0:00:05]} 47. gxf4+ {[%emt 0:00:01]} Kg4 {[%emt 0:00:17]} 48. e5 {[%emt 0:00:26]} Rb4+ {[%emt 0:00:11]} 49. Kd5 {[%emt 0:00:07]} Rxf4 {[%emt 0:00:11]} 50. Rg2+ {[%emt 0:00:14]} Kf3 {[%emt 0:00:08]} 51. Rg8 {[%emt 0:00:05]} dxe5 {[%emt 0:00:08]} 52. Kxe5 {[%emt 0:00:07]} h4 {[%emt 0:00:04]} 53. Rh8 {[%emt 0:00:05]} Bg7+ 0-1

[Event "Kupreichik Memorial Open 2018"]
[Site "Minsk"]
[Date "2018.06.22"]
[Round "8"]
[White "Korniichuk, Fedir"]
[Black "Korniichuk, Oleksandra"]
[Result "0-1"]
[ECO "E43"]
[WhiteElo "1568"]
[BlackElo "1740"]
[Annotator "NA"]
[PlyCount "168"]
[EventDate "2018.06.21"]
[EventCountry "BLR"]
[SourceTitle "playchess.com"]
[Source "ChessBase"]
[SourceQuality "1"]
[TimeControl "900+10"]

1. d4 {[%emt 0:00:00]} Nf6 {[%emt 0:00:04]} 2. c4 {[%emt 0:00:00]} e6 {[%emt 0:00:02]} 3. e3 {[%emt 0:00:03]} b6 {[%emt 0:00:17]} 4. Nc3 {[%emt 0:00:03]} Bb4 {[%emt 0:00:04]} 5. Bd3 {[%emt 0:00:07]} O-O {[%emt 0:00:06]} 6. Nf3 {[%emt 0:00:02]} Bb7 {[%emt 0:00:16]} 7. O-O {[%emt 0:00:04]} d5 {[%emt 0:00:26]} 8. a3 {[%emt 0:00:15]} Bxc3 {[%emt 0:00:05]} 9. bxc3 {[%emt 0:00:02]} dxc4 {[%emt 0:00:35]} 10. Bxc4 {[%emt 0:00:02]} Nbd7 {[%emt 0:00:08]} 11. Qc2 {[%emt 0:00:12]} c5 {[%emt 0:00:11]} 12. Be2 {[%emt 0:00:25]} Rc8 {[%emt 0:00:24]} 13. Qb1 {[%emt 0:00:31]} Ne4 {[%emt 0:00:36]} 14. Bb2 {[%emt 0:00:21]} cxd4 {[%emt 0:00:16]} 15. cxd4 {[%emt 0:00:11]} Nc3 {[%emt 0:00:07]} 16. Bxc3 {[%emt 0:00:10]} Rxc3 {[%emt 0:00:05]} 17. Rc1 {[%emt 0:00:17]} Qc7 {[%emt 0:00:27]} 18. Bb5 {[%emt 0:00:28]} Nf6 {[%emt 0:00:18]} 19. Rxc3 {[%emt 0:00:27]} Qxc3 {[%emt 0:00:02]} 20. Qc1 {[%emt 0:00:29]} Rc8 {[%emt 0:00:01]} 21. Qxc3 {[%emt 0:00:21]} Rxc3 {[%emt 0:00:01]} 22. a4 {[%emt 0:00:25]} Bxf3 {[%emt 0:00:31]} 23. gxf3 {[%emt 0:00:08]} g6 {[%emt 0:00:37]} 24. Kg2 {[%emt 0:00:37]} Nd5 {[%emt 0:00:03]} 25. a5 {[%emt 0:00:31]} bxa5 {[%emt 0:00:19]} 26. Rxa5 {[%emt 0:00:20]} Rc7 {[%emt 0:00:01]} 27. Bd3 {[%emt 0:00:29]} Kg7 {[%emt 0:00:02]} 28. Be4 {[%emt 0:00:07]} Nf6 {[%emt 0:00:16]} 29. Ra6 {[%emt 0:00:30]} h5 {[%emt 0:00:10]} 30. h4 {[%emt 0:00:29]} Nd7 {[%emt 0:00:05]} 31. Bd3 {[%emt 0:00:19]} Nb6 {[%emt 0:00:08]} 32. Be4 {[%emt 0:00:43]} Nc8 {[%emt 0:00:07]} 33. Kg3 {[%emt 0:00:24]} Nb6 {[%emt 0:00:07]} 34. Kg2 {[%emt 0:00:07]} Nd7 {[%emt 0:00:02]} 35. Kg3 {[%emt 0:00:05]} Nb8 {[%emt 0:00:03]} 36. Ra5 {[%emt 0:00:12]} a6 {[%emt 0:00:54]} 37. Bd3 {[%emt 0:00:22]} Rc6 {[%emt 0:00:05]} 38. Bf1 {[%emt 0:00:13]} Kf6 {[%emt 0:00:05]} 39. Bd3 {[%emt 0:00:10]} Ke7 {[%emt 0:00:01]} 40. f4 {[%emt 0:00:29]} Rb6 {[%emt 0:00:23]} 41. Kf3 {[%emt 0:00:07]} Kd6 {[%emt 0:00:12]} 42. Bc4 {[%emt 0:00:19]} Kc7 {[%emt 0:00:13]} 43. d5 {[%emt 0:01:03]} exd5 {[%emt 0:00:54]} 44. Bxd5 {[%emt 0:00:03]} Nc6 {[%emt 0:00:07]} 45. Ra3 {[%emt 0:00:40]} Nd8 {[%emt 0:00:05]} 46. Ra5 {[%emt 0:00:23]} Rb5 {[%emt 0:00:28]} 47. Rxb5 {[%emt 0:00:18]} axb5 {[%emt 0:00:02]} 48. Ke2 {[%emt 0:00:06]} Kd6 {[%emt 0:00:01]} 49. Bb3 {[%emt 0:00:07]} Kc5 {[%emt 0:00:06]} 50. Kd3 {[%emt 0:00:08]} Kb4 {[%emt 0:00:35]} 51. Kc2 {[%emt 0:00:19]} Ka3 {[%emt 0:00:24]} 52. Bd5 {[%emt 0:00:14]} b4 {[%emt 0:00:09]} 53. f3 {[%emt 0:00:44]} Ne6 {[%emt 0:00:17]} 54. Bb3 {[%emt 0:00:52]} Nd8 {[%emt 0:03:33]} 55. Bd5 {[%emt 0:00:23]} Ka4 {[%emt 0:00:24]} 56. Bb3+ {[%emt 0:00:31]} Kb5 {[%emt 0:00:05]} 57. Bd5 {[%emt 0:00:07]} Kc5 {[%emt 0:00:05]} 58. Bb3 {[%emt 0:00:05]} Kd6 {[%emt 0:01:36]} 59. Kd3 {[%emt 0:00:07]} Kc5 {[%emt 0:00:21]} 60. Ba2 {[%emt 0:00:21]} Ne6 {[%emt 0:01:00]} 61. Bb3 {[%emt 0:00:13]} Kb5 {[%emt 0:00:55]} 62. Kc2 {[%emt 0:00:10]} Nd8 {[%emt 0:00:07]} 63. Kd3 {[%emt 0:00:03]} Kc5 {[%emt 0:00:02]} 64. Ba2 {[%emt 0:00:06]} Ne6 {[%emt 0:01:49]} 65. Bb3 {[%emt 0:00:08]} Kd6 {[%emt 0:00:24]} 66. Kc4 {[%emt 0:01:05]} Ke7 {[%emt 0:00:23]} 67. Kxb4 {[%emt 0:00:11]} Ng7 {[%emt 0:00:01]} 68. Bc2 {[%emt 0:00:09]} Kf6 {[%emt 0:00:07]} 69. Kc4 {[%emt 0:00:14]} Ne6 {[%emt 0:01:46]} 70. Kd5 {[%emt 0:00:18]} Nc7+ {[%emt 0:00:04]} 71. Kc4 {[%emt 0:00:12]} Ke6 {[%emt 0:00:21]} 72. Bb3 {[%emt 0:00:21]} Kf6 {[%emt 0:00:13]} 73. Kc5 Ne8 {[%emt 0:00:20]} 74. Kc6 {[%emt 0:01:18]} Ng7 {[%emt 0:00:12]} 75. e4 {[%emt 0:00:31]} Ke7 {[%emt 0:00:03]} 76. Bd5 {[%emt 0:00:44]} Ne8 {[%emt 0:00:09]} 77. Ba2 {[%emt 0:00:15]} Nd6 {[%emt 0:00:18]} 78. Kd5 {[%emt 0:00:20]} Nb5 {[%emt 0:00:12]} 79. Kc4 {[%emt 0:00:20]} Na3+ {[%emt 0:00:32]} 80. Kb3 {[%emt 0:00:39]} Nb5 {[%emt 0:00:03]} 81. Bb1 {[%emt 0:00:04]} Nd4+ {[%emt 0:00:03]} 82. Kc4 {[%emt 0:00:12]} Nxf3 {[%emt 0:00:01]} 83. f5 {[%emt 0:00:42]} gxf5 {[%emt 0:00:22]} 84. exf5 {[%emt 0:00:18]} Nd2+ {[%emt 0:00:01]} 0-1

[Event "Kupreichik Memorial Open 2018"]
[Site "Minsk"]
[Date "2018.06.22"]
[Round "8"]
[White "Drobyshevsky, Vasily"]
[Black "Katashuk, Uladzislau"]
[Result "0-1"]
[ECO "A10"]
[WhiteElo "1551"]
[BlackElo "2149"]
[Annotator "NA"]
[PlyCount "76"]
[EventDate "2018.06.21"]
[EventCountry "BLR"]
[SourceTitle "playchess.com"]
[Source "ChessBase"]
[SourceQuality "1"]
[TimeControl "900+10"]

1. c4 {[%emt 0:00:00]} b6 {[%emt 0:00:03]} 2. Nc3 {[%emt 0:00:00]} Bb7 {[%emt 0:00:00]} 3. d4 {[%emt 0:00:00]} g6 {[%emt 0:00:02]} 4. e4 {[%emt 0:00:02]} Bg7 {[%emt 0:00:01]} 5. d5 {[%emt 0:00:23]} d6 {[%emt 0:00:31]} 6. Nf3 {[%emt 0:00:03]} Nd7 {[%emt 0:00:14]} 7. Be3 {[%emt 0:00:31]} Ngf6 {[%emt 0:00:12]} 8. Bd3 {[%emt 0:00:18]} a6 {[%emt 0:00:23]} 9. Rc1 {[%emt 0:00:08]} h6 {[%emt 0:00:12]} 10. h3 {[%emt 0:00:03]} O-O {[%emt 0:00:45]} 11. O-O {[%emt 0:00:03]} e5 {[%emt 0:00:07]} 12. Qd2 {[%emt 0:00:23]} Kh7 {[%emt 0:00:04]} 13. Nh2 {[%emt 0:00:20]} Nc5 {[%emt 0:01:08]} 14. Bxc5 {[%emt 0:00:08]} bxc5 {[%emt 0:00:09]} 15. Ne2 {[%emt 0:02:31]} Qe7 {[%emt 0:00:29]} 16. Rb1 {[%emt 0:00:24]} a5 {[%emt 0:00:03]} 17. a3 {[%emt 0:00:03]} a4 {[%emt 0:00:01]} 18. b3 {[%emt 0:00:45]} axb3 {[%emt 0:00:02]} 19. Rxb3 {[%emt 0:00:02]} Bc8 {[%emt 0:00:01]} 20. Ra1 {[%emt 0:00:17]} Nh5 {[%emt 0:00:16]} 21. a4 {[%emt 0:01:15]} f5 {[%emt 0:00:13]} 22. f3 {[%emt 0:00:07]} Nf4 {[%emt 0:00:34]} 23. Nxf4 {[%emt 0:00:15]} exf4 {[%emt 0:00:01]} 24. Ra2 {[%emt 0:00:12]} Bd4+ {[%emt 0:00:02]} 25. Kh1 {[%emt 0:00:05]} Be3 {[%emt 0:00:01]} 26. Qc3 {[%emt 0:00:27]} fxe4 {[%emt 0:00:07]} 27. Bxe4 {[%emt 0:00:21]} Bf5 {[%emt 0:00:02]} 28. Qd3 {[%emt 0:01:08]} Qh4 {[%emt 0:00:16]} 29. Rb7 {[%emt 0:03:52]} Rf7 {[%emt 0:01:12]} 30. a5 {[%emt 0:00:50]} Ra6 {[%emt 0:03:19]} 31. Rb8 {[%emt 0:01:03]} Bd4 {[%emt 0:01:09]} 32. Bxf5 {[%emt 0:00:56]} gxf5 {[%emt 0:00:02]} 33. Qe2 {[%emt 0:00:34]} Re7 {[%emt 0:00:14]} 34. g3 {[%emt 0:02:25]} Rxe2 {[%emt 0:00:27]} 35. Rxe2 {[%emt 0:00:17]} fxg3 {[%emt 0:00:35]} 36. Ree8 {[%emt 0:00:27]} g2+ {[%emt 0:00:03]} 37. Kxg2 {[%emt 0:00:05]} Qf2+ {[%emt 0:00:01]} 38. Kh1 {[%emt 0:00:05]} Qg1# {[%emt 0:00:02]} 0-1

[Event "Kupreichik Memorial Open 2018"]
[Site "Minsk"]
[Date "2018.06.23"]
[Round "9"]
[White "Bernotas, Arturs"]
[Black "Kalinin, Dmitry"]
[Result "1-0"]
[ECO "C00"]
[WhiteElo "2407"]
[BlackElo "1995"]
[Annotator "NA"]
[PlyCount "85"]
[EventDate "2018.06.21"]
[EventCountry "BLR"]
[SourceTitle "playchess.com"]
[Source "ChessBase"]
[SourceQuality "1"]
[TimeControl "900+10"]

1. e4 {[%emt 0:02:19]} e6 {[%emt 0:00:05]} 2. c4 {[%emt 0:00:06]} c5 {[%emt 0:00:16]} 3. Nf3 {[%emt 0:00:05]} Nc6 {[%emt 0:00:06]} 4. Be2 {[%emt 0:00:09]} Be7 {[%emt 0:00:20]} 5. O-O {[%emt 0:00:08]} Qc7 {[%emt 0:00:31]} 6. Nc3 {[%emt 0:00:08]} a6 {[%emt 0:00:02]} 7. d4 {[%emt 0:00:04]} cxd4 {[%emt 0:00:01]} 8. Nxd4 {[%emt 0:00:03]} Nf6 {[%emt 0:00:18]} 9. Be3 {[%emt 0:00:03]} O-O {[%emt 0:00:39]} 10. Rc1 {[%emt 0:00:05]} d6 {[%emt 0:00:40]} 11. Nd5 {[%emt 0:00:44]} Qd8 {[%emt 0:04:51]} 12. Nxe7+ {[%emt 0:01:36]} Qxe7 {[%emt 0:00:34]} 13. f3 {[%emt 0:01:07]} Rd8 {[%emt 0:02:34]} 14. Bg5 {[%emt 0:00:20]} h6 {[%emt 0:00:23]} 15. Bh4 {[%emt 0:00:06]} e5 {[%emt 0:01:03]} 16. Nc2 {[%emt 0:00:35]} Be6 {[%emt 0:00:07]} 17. Bf2 {[%emt 0:01:58]} Rac8 {[%emt 0:01:01]} 18. Bb6 {[%emt 0:00:20]} Rf8 {[%emt 0:00:01]} 19. Ne3 {[%emt 0:00:07]} Nd7 {[%emt 0:00:06]} 20. Qb3 {[%emt 0:01:59]} Nxb6 {[%emt 0:01:09]} 21. Qxb6 {[%emt 0:00:04]} Nd4 {[%emt 0:00:05]} 22. Bd3 {[%emt 0:00:09]} Qg5 {[%emt 0:00:08]} 23. Rce1 {[%emt 0:02:38]} Qe7 {[%emt 0:01:13]} 24. f4 {[%emt 0:00:35]} f6 {[%emt 0:00:32]} 25. b3 {[%emt 0:00:23]} Rc6 {[%emt 0:00:26]} 26. Qb4 {[%emt 0:00:08]} Rc5 {[%emt 0:00:55]} 27. Qd2 {[%emt 0:00:22]} b5 {[%emt 0:00:05]} 28. Nd5 {[%emt 0:00:42]} Qd8 {[%emt 0:00:31]} 29. Qf2 {[%emt 0:00:09]} bxc4 {[%emt 0:00:05]} 30. Bxc4 {[%emt 0:00:06]} Bxd5 {[%emt 0:00:26]} 31. Bxd5+ {[%emt 0:00:08]} Kh8 {[%emt 0:00:02]} 32. Bc4 {[%emt 0:00:09]} a5 {[%emt 0:00:15]} 33. Re3 {[%emt 0:00:07]} f5 {[%emt 0:00:23]} 34. exf5 {[%emt 0:00:59]} Nxf5 {[%emt 0:00:24]} 35. fxe5 {[%emt 0:00:07]} dxe5 {[%emt 0:00:30]} 36. Rd3 {[%emt 0:00:57]} Qg5 {[%emt 0:00:08]} 37. Qxc5 {[%emt 0:00:06]} Re8 {[%emt 0:00:14]} 38. Rdf3 {[%emt 0:00:18]} Nh4 {[%emt 0:00:04]} 39. Rf8+ {[%emt 0:00:06]} Kh7 {[%emt 0:00:03]} 40. Bg8+ {[%emt 0:00:09]} Kg6 {[%emt 0:00:01]} 41. Qc6+ {[%emt 0:00:04]} Kh5 {[%emt 0:00:18]} 42. Qxe8+ {[%emt 0:00:05]} g6 {[%emt 0:00:06]} 43. Qc6 {[%emt 0:00:13]} 1-0